bitfinex/quotes_ETHUSD_20260203
["timestamp","ask_amount","ask_price","bid_price","bid_amount"]
[1770083392821,0.92051101,2351.3,2351.1,0.001]
[1770083396543,10.34547733,2351.7,2351.1,0.001]
[1770083396846,0.91485473,2351.6,2351.1,0.001]
[1770083397043,0.91485473,2351.5,2351.1,0.001]
[1770083397242,11.62343516,2352.0,2351.2,0.01288604]
[1770083397548,11.62343516,2352.0,2351.3,1.06324161]
[1770083397549,1.1435176,2351.9,2351.3,1.06324161]
[1770083397752,9.03503792,2352.0,2351.4,0.53291856]
[1770083398330,0.0011,2352.0,2351.4,0.5458046]
[1770083398639,0.0011,2352.0,2351.5,0.01288604]
[1770083399257,0.0011,2352.0,2351.4,0.53291856]
[1770083399438,2.28826065,2353.0,2352.4,0.01288604]
[1770083399642,0.0011,2353.0,2352.5,0.01288604]
[1770083399848,0.0011,2353.0,2352.3,0.01288604]
[1770083400016,1.52763713,2353.0,2352.4,0.01288604]
[1770083400448,0.0011,2353.4,2352.9,0.01288604]
[1770083400650,0.0011,2353.6,2353.1,0.01288604]
[1770083400949,8.14193792,2353.5,2352.2,8.51508794]
[1770083401125,0.92052433,2353.4,2352.5,0.01288604]
[1770083401451,0.92052433,2353.4,2352.6,1.06265408]
[1770083401452,9.06246225,2353.4,2352.6,1.06265408]
[1770083401652,8.14193792,2353.2,2352.5,1.06266604]
[1770083401968,1.52653713,2353.1,2352.5,1.06266604]
[1770083402147,1.52653713,2353.3,2352.6,0.01288604]
[1770083402453,1.52653713,2353.3,2352.6,0.54811038]
[1770083403653,1.52653713,2353.3,2352.2,4.26368306]
[1770083403654,8.14193792,2353.2,2352.1,5.14340307]
[1770083403824,0.0011,2352.8,2352.3,1.06278788]
[1770083404338,0.0011,2352.8,2352.5,1.06269564]
[1770083406557,6.06084688,2353.4,2352.7,0.01288604]
[1770083406558,1.81152433,2353.4,2352.7,0.01288604]
[1770083406855,1.81152433,2353.4,2352.3,7.29278532]
[1770083406856,9.66847505,2353.2,2352.4,0.01288604]
[1770083407157,9.66847505,2353.2,2352.3,1.06278961]
[1770083407554,9.66847505,2353.2,2352.3,1.07567565]
[1770083407854,1.81152433,2353.4,2352.6,0.01288604]
[1770083407855,1.52653713,2353.1,2352.6,0.01288604]
[1770083408052,1.52653713,2353.3,2352.6,0.01288604]
[1770083408254,2.67453707,2353.3,2352.4,0.01288604]
[1770083408457,1.14799994,2353.3,2352.4,0.01288604]
[1770083408641,9.66847505,2353.2,2352.3,1.07567565]
[1770083408831,9.66847505,2353.2,2352.3,1.06278961]
[1770083409358,9.66847505,2353.2,2352.4,0.01288604]
[1770083409657,9.66847505,2353.2,2352.4,0.54814666]
[1770083410629,8.14193792,2353.1,2352.4,1.06271519]
[1770083411655,1.52653713,2353.1,2352.6,0.01288604]
[1770083412061,9.06246225,2353.4,2352.6,0.01288604]
[1770083412230,1.52653713,2353.2,2352.7,0.01288604]
[1770083412434,9.66847505,2353.5,2352.7,0.01288604]
[1770083412630,0.9669575,2353.4,2352.8,1.06256375]
[1770083412933,9.10889542,2353.4,2352.7,1.06257645]
[1770083415072,0.0011,2353.6,2352.6,6.22523794]
[1770083415357,0.0011,2353.6,2352.7,0.01288604]
[1770083415358,8.14303792,2353.6,2352.7,0.01288604]
[1770083416758,0.0011,2353.2,2352.6,0.01288604]
[1770083417333,0.0011,2353.2,2352.7,1.06260891]
[1770083417535,8.14303792,2353.2,2352.5,0.001]
[1770083417741,8.14303792,2353.2,2352.6,1.06263709]
[1770083417964,0.81430379,2353.1,2352.6,1.06263709]
[1770083419549,0.0011,2353.2,2352.6,0.01288604]
[1770083419744,0.0011,2353.2,2352.7,0.01288604]
[1770083419969,0.0011,2353.2,2352.8,0.01288604]
[1770083421666,0.0011,2353.2,2352.9,1.06251859]
[1770083421967,7.44187466,2353.2,2352.8,1.06252995]
[1770083422172,8.18617213,2353.2,2352.8,1.06252995]
[1770083423967,8.18617213,2353.2,2352.5,4.25170911]
[1770083424157,7.44187466,2353.2,2352.5,4.25170911]
[1770083424561,7.44187466,2353.2,2352.5,1.06369925]
[1770083425172,8.50426995,2353.2,2352.5,0.001]
[1770083425496,7.44187466,2353.2,2352.5,0.001]
[1770083425783,8.50426218,2353.2,2352.5,0.001]
[1770083425976,8.29120088,2353.1,2352.5,0.001]
[1770083426776,0.0011,2353.2,2352.6,0.01288604]
[1770083427277,7.44077466,2353.1,2352.5,0.001]
[1770083428077,1.06247343,2353.0,2352.5,0.001]
[1770083428281,8.50324809,2353.0,2352.5,0.001]
[1770083428579,8.50324809,2353.0,2352.3,0.001]
[1770083428758,7.44077466,2352.8,2351.8,1.06298498]
[1770083428966,7.44077466,2352.6,2351.6,1.06308306]
[1770083429174,7.44077466,2352.4,2351.5,0.90388604]
[1770083429352,1.27530538,2352.9,2352.1,1.06287929]
[1770083429353,7.44077466,2352.7,2352.1,1.06287929]
[1770083429863,7.44077466,2352.7,2352.5,0.001]
[1770083430187,8.31238266,2352.7,2352.5,0.001]
[1770083435400,0.8921,2353.1,2352.5,0.001]
[1770083435401,0.0011,2353.1,2352.5,0.001]
[1770083435692,7.44077466,2352.9,2352.5,0.001]
[1770083437771,4.25095959,2353.1,2352.5,0.001]
[1770083437772,0.0011,2353.1,2352.5,0.001]
[1770083437967,0.91415778,2353.0,2352.5,0.001]
[1770083438276,0.0011,2353.1,2352.6,0.01288604]
[1770083438983,7.44077466,2353.0,2352.5,0.001]
[1770083439971,8.50325605,2353.0,2352.5,0.001]
[1770083440499,7.44077466,2352.8,2352.1,1.06287571]
[1770083440900,9.33783496,2353.1,2352.1,1.07576175]
[1770083441104,8.35511939,2353.0,2352.2,0.53403443]
[1770083441299,7.44077466,2353.0,2352.1,1.06287571]
[1770083442086,1.8970603,2353.1,2352.3,0.001]
[1770083442087,8.50329325,2352.9,2352.3,0.001]
[1770083442274,0.0011,2352.9,2352.3,0.001]
[1770083443475,0.0011,2353.1,2352.6,0.01288604]
[1770083443671,8.50431078,2353.1,2352.3,0.001]
[1770083443903,7.44077466,2352.9,2352.3,0.001]
[1770083444106,7.44077466,2352.7,2352.3,0.001]
[1770083446214,8.50339303,2352.7,2352.3,0.001]
[1770083446586,8.50339303,2352.7,2352.0,0.001]
[1770083447086,7.44077466,2352.7,2352.0,0.001]
[1770083448017,0.91515427,2352.6,2352.0,0.001]
[1770083448206,8.50338974,2352.7,2352.0,0.001]
[1770083448523,8.3557252,2352.6,2351.6,1.06306076]
[1770083448681,7.44077466,2352.4,2351.6,1.06306076]
[1770083449414,2.33796958,2352.7,2351.5,0.001]
[1770083449415,7.44077466,2352.2,2351.5,0.001]
[1770083449713,7.44077466,2352.0,2351.5,0.001]
[1770083449912,2.41489114,2352.3,2351.5,0.001]
[1770083449913,7.44077466,2351.8,2351.5,0.001]
[1770083450102,2.41489114,2352.3,2351.3,0.001]
[1770083450103,7.83344965,2351.6,2351.3,0.001]
[1770083450301,7.83344965,2351.6,2351.1,0.001]
[1770083453693,8.89645122,2351.9,2351.1,0.001]
[1770083453895,8.69404089,2351.9,2351.1,0.001]
[1770083455003,8.89646521,2351.8,2351.1,0.001]
[1770083455917,8.89646521,2351.8,2351.3,0.001]
[1770083456120,0.0011,2351.4,2351.3,0.001]
[1770083459026,0.0011,2351.6,2351.3,0.001]
[1770083461709,0.891,2352.3,2351.3,6.18714404]
[1770083461905,0.0011,2352.1,2351.4,0.6187144]
[1770083463432,0.891,2352.3,2351.4,6.80352745]
[1770083463748,0.0011,2352.2,2351.5,1.06315118]
[1770083463927,8.89723619,2352.6,2351.5,7.24796423]
[1770083463928,0.0011,2352.6,2351.5,7.24796423]
[1770083464230,0.0011,2352.6,2351.7,6.18481305]
[1770083464231,0.0011,2352.5,2351.7,6.18481305]
[1770083464731,0.51742435,2352.8,2351.7,6.19607248]
[1770083465033,0.51852435,2352.8,2351.7,6.19607248]
[1770083465201,0.51852435,2352.8,2351.7,6.18318644]
[1770083465397,0.51852435,2352.8,2351.8,0.74092894]
[1770083465601,0.51852435,2352.8,2351.9,1.06297036]
[1770083465602,9.41455047,2352.8,2351.9,1.06297036]
[1770083465827,7.83344965,2352.7,2351.4,4.25277886]
[1770083466030,0.91239946,2352.6,2351.6,1.06307728]
[1770083466231,7.83344965,2352.5,2351.6,1.06307728]
[1770083466401,0.0011,2352.6,2351.6,1.06307728]
[1770083466402,7.83344965,2352.3,2351.6,1.06307728]
[1770083466930,7.83454965,2352.2,2351.5,1.06311864]
[1770083467419,7.83454965,2352.2,2351.4,1.06316121]
[1770083467735,8.89632422,2352.2,2351.3,0.001]
[1770083468033,7.83454965,2352.1,2351.3,0.001]
[1770083468404,7.83344965,2352.1,2351.3,0.001]
[1770083468733,9.14820491,2352.1,2351.3,0.001]
[1770083468930,8.61690462,2352.4,2351.3,0.001]
[1770083469135,0.0011,2352.2,2351.3,0.001]
[1770083469937,0.0011,2352.2,2351.7,0.001]
[1770083470803,0.0011,2352.4,2351.7,0.001]
[1770083471021,0.0022,2352.4,2351.7,0.001]
[1770083471220,0.0011,2352.4,2351.7,6.18057167]
[1770083471442,0.0011,2352.4,2351.8,0.61934577]
[1770083472131,0.0011,2352.4,2351.9,1.06297036]
[1770083472351,0.0011,2352.6,2351.9,1.06297036]
[1770083472723,0.0022,2352.6,2351.9,1.06297036]
[1770083473629,7.83564965,2352.6,2351.9,1.06297036]
[1770083473841,0.0022,2352.6,2351.9,2.08167826]
[1770083475927,0.0011,2352.6,2351.9,2.08167826]
[1770083476125,0.0011,2353.1,2352.1,7.23846004]
[1770083476330,0.0011,2353.1,2352.5,0.01288604]
[1770083476554,0.0011,2353.1,2352.5,0.63419986]
[1770083476756,0.0011,2353.3,2352.7,0.01288604]
[1770083476966,0.0011,2353.8,2353.0,0.01288604]
[1770083477139,1e-08,2353.9,2353.5,0.01288604]
[1770083478259,1e-08,2353.9,2353.6,1.06220258]
[1770083478423,1e-08,2353.9,2353.6,1.75104754]
[1770083480654,0.0011,2354.2,2353.6,1.76393358]
[1770083481155,0.0011,2354.2,2353.7,0.01288604]
[1770083481732,0.0011,2354.4,2353.8,0.01288604]
[1770083482258,0.0011,2354.4,2353.9,0.01288604]
[1770083482467,7.515195,2354.4,2353.6,1.76393358]
[1770083482651,7.515195,2354.4,2353.8,1.06211232]
[1770083483676,7.515195,2354.4,2353.8,1.07499836]
[1770083484142,0.0011,2354.8,2353.8,1.07499836]
[1770083484341,0.0011,2354.8,2353.9,8.03679948]
[1770083484547,0.36682664,2355.4,2354.4,0.01288604]
[1770083484844,4.24466479,2355.9,2354.4,0.01288604]
[1770083484845,8.65470828,2356.3,2354.9,0.01288604]
[1770083485069,7.514095,2356.3,2355.2,0.01288604]
[1770083485475,8.57490742,2356.7,2355.6,0.01288604]
[1770083485675,1.06085635,2356.6,2355.5,0.01288604]
[1770083486172,8.57495135,2356.6,2355.5,0.01288604]
[1770083486349,1.2818194,2356.5,2355.7,0.01288604]
[1770083486674,1.06078586,2356.8,2355.8,0.01288604]
[1770083487172,8.57488086,2356.8,2355.9,1.06116558]
[1770083489150,8.57488086,2356.8,2355.3,4.24572766]
[1770083489362,8.57488086,2356.8,2355.7,1.06121685]
[1770083489559,8.57488086,2356.8,2355.5,1.06132369]
[1770083489560,7.514095,2356.6,2355.5,1.06132369]
[1770083490146,8.10370728,2356.6,2355.3,1.06141423]
[1770083490367,7.514095,2356.6,2355.3,1.06141403]
[1770083490575,7.514095,2356.4,2354.7,5.15065352]
[1770083490787,7.514095,2356.2,2355.2,1.06146666]
[1770083490949,0.891,2356.5,2355.2,1.06146666]
[1770083490950,7.514095,2356.0,2355.2,1.06146666]
[1770083491149,8.57526058,2355.9,2354.9,4.2464146]
[1770083491352,8.57526058,2355.9,2354.9,1.0616162]
[1770083491577,1.06116558,2355.9,2354.9,1.0616162]
[1770083491851,1.81252049,2356.1,2354.9,1.07450224]
[1770083492057,0.60566827,2356.0,2355.0,0.54627819]
[1770083493385,9.18090381,2356.0,2355.1,1.06152604]
[1770083493588,9.18090381,2356.0,2355.0,1.06155461]
[1770083494070,9.18090381,2356.0,2355.0,1.07444065]
[1770083494071,8.11976327,2356.0,2355.0,1.07444065]
[1770083494276,0.60566827,2356.0,2355.1,0.01288604]
[1770083494485,0.7514095,2356.1,2355.1,0.01288604]
[1770083495189,1.8124862,2356.1,2355.1,0.01288604]
[1770083495485,9.3265812,2356.1,2355.2,1.06148097]
[1770083496578,0.7514095,2356.1,2355.5,0.01288604]
[1770083496887,0.891,2356.5,2355.6,0.01288604]
[1770083497285,0.0011,2356.0,2355.6,0.01288604]
[1770083497485,0.0011,2356.0,2355.7,1.06125567]
[1770083498257,8.57492975,2356.7,2355.8,0.01288604]
[1770083498584,8.79589471,2356.6,2355.7,1.07414171]
[1770083498754,8.79589471,2356.6,2355.7,1.06125567]
[1770083500485,7.44916671,2356.5,2355.7,1.06125567]
[1770083501279,7.44916671,2356.5,2355.2,4.24586537]
[1770083501594,7.44916671,2356.5,2355.6,1.06129736]
[1770083501801,6.54933617,2356.3,2355.6,1.06129736]
[1770083501960,7.61036388,2356.3,2355.4,1.06139084]
[1770083502388,7.6103298,2356.3,2355.4,1.07427688]
[1770083502563,6.54933617,2356.3,2355.5,0.01288604]
[1770083502764,0.75285187,2356.2,2355.5,0.01288604]
[1770083503099,0.75285187,2356.2,2355.4,1.07427688]
[1770083503100,0.75285187,2356.2,2355.4,1.06139084]
[1770083503302,6.41278034,2356.2,2355.4,1.06139084]
[1770083505388,6.41278034,2356.2,2355.4,1.07427688]
[1770083505590,4.9647207,2356.1,2355.1,0.01288604]
[1770083505790,5.71209894,2356.1,2355.3,1.06141799]
[1770083506090,5.71209894,2356.1,2354.9,0.89]
[1770083506305,4.9647207,2355.9,2355.1,0.01288604]
[1770083506592,4.9647207,2355.9,2355.2,0.01288604]
[1770083507168,4.9647207,2355.9,2355.1,0.62365137]
[1770083507581,4.9647207,2355.9,2355.1,0.63653741]
[1770083508117,4.9647207,2355.9,2355.0,1.06157112]
[1770083508391,4.9647207,2355.7,2355.0,1.06157112]
[1770083508903,4.9647207,2355.7,2355.0,1.07445716]
[1770083509498,4.9647207,2355.7,2355.2,0.001]
[1770083510501,0.0011,2355.8,2355.2,0.001]
[1770083510704,0.0011,2355.8,2355.3,0.01288604]
[1770083511074,0.0011,2355.8,2355.4,0.01288604]
[1770083511672,1.48236035,2356.6,2355.7,0.01288604]
[1770083511880,0.34331919,2356.5,2355.7,0.01288604]
[1770083512230,1.82567954,2356.5,2355.7,0.01288604]
[1770083512410,1.82567954,2356.5,2355.8,1.06121062]
[1770083512705,1.48236035,2356.5,2355.8,1.07409666]
[1770083513006,1.48346035,2356.5,2355.8,1.07409666]
[1770083513170,0.0011,2356.5,2355.8,1.07409666]
[1770083513374,1.48346035,2356.5,2355.8,1.06121062]
[1770083513779,1.48236035,2356.4,2355.7,1.06122083]
[1770083514016,1.48236035,2356.2,2355.7,1.06122083]
[1770083514512,1.48236035,2356.2,2355.5,1.06134578]
[1770083514725,1.48346035,2356.2,2355.5,1.06134578]
[1770083515613,1.48236035,2356.1,2355.5,1.06134578]
[1770083516535,0.25443598,2356.3,2355.5,1.06134578]
[1770083516690,0.0011,2356.3,2355.6,0.54486292]
[1770083517108,1.48346035,2356.3,2355.6,0.54486292]
[1770083518593,1.48346035,2356.3,2355.7,1.06125567]
[1770083520722,2.20499197,2356.9,2355.7,1.07414171]
[1770083520898,1.48236035,2356.6,2355.8,0.01288604]
[1770083521102,1.48236035,2356.6,2355.8,0.60057738]
[1770083521735,0.0011,2356.5,2355.8,0.58769134]
[1770083521941,1.48236035,2356.5,2355.8,0.58769134]
[1770083522733,0.0011,2356.4,2355.9,1.06216558]
[1770083522938,0.0011,2356.7,2355.9,1.07505162]
[1770083523159,0.0011,2357.0,2356.6,0.01288604]
[1770083523656,2.62661184,2357.7,2356.6,0.01288604]
[1770083523950,1.48236035,2357.7,2356.4,0.01288604]
[1770083524250,1.48236035,2357.6,2356.7,0.01288604]
[1770083524405,1.48236035,2357.6,2356.8,0.01288604]
[1770083524612,1.48346035,2357.5,2356.8,0.01288604]
[1770083524807,1.48346035,2357.5,2356.8,1.06073189]
[1770083524808,1.48236035,2357.4,2356.8,1.06073189]
[1770083525023,1.48236035,2357.4,2356.7,1.06076631]
[1770083525224,1.06155736,2357.5,2356.8,1.06075933]
[1770083525225,1.48236035,2357.2,2356.8,1.06075933]
[1770083525822,1.48346035,2357.5,2356.8,1.07364537]
[1770083526008,1.48236035,2357.4,2356.8,1.06075933]
[1770083526418,0.0011,2357.5,2356.9,0.01288604]
[1770083526650,0.0011,2357.5,2357.1,0.01288604]
[1770083526857,1.48236035,2358.0,2357.3,0.01288604]
[1770083527151,1.48236035,2358.0,2357.4,0.01288604]
[1770083527315,1.48236035,2358.0,2357.2,1.07346638]
[1770083527629,1.48236035,2358.0,2357.3,0.01288604]
[1770083528227,1.48236035,2358.0,2357.4,0.01288604]
[1770083528427,1.48236035,2358.0,2357.3,0.01288604]
[1770083528641,1.48236035,2358.0,2357.4,0.01288604]
[1770083528842,1.48236035,2358.0,2357.5,1.06044538]
[1770083529421,1.48236035,2358.0,2357.4,1.06046985]
[1770083529625,1.48236035,2358.0,2357.2,1.06055114]
[1770083529626,1.48236035,2357.9,2357.2,1.06055114]
[1770083529921,1.48236035,2357.9,2356.9,1.06068207]
[1770083530236,1.48236035,2357.7,2357.0,1.06066558]
[1770083530422,1.48236035,2357.7,2356.9,1.06068344]
[1770083530617,1.48236035,2357.7,2357.2,1.06055687]
[1770083530822,1.48236035,2357.7,2356.8,4.24292238]
[1770083530823,2.54275335,2357.7,2356.8,4.24292238]
[1770083531049,1.48236035,2357.6,2356.8,4.24292238]
[1770083531250,1.48236035,2357.5,2356.8,4.7887539]
[1770083531558,1.48236035,2357.5,2356.7,1.06077437]
[1770083531851,1.48236035,2357.5,2356.8,0.01288604]
[1770083532642,1.48236035,2357.5,2357.0,0.01288604]
[1770083532837,1.48236035,2357.8,2357.3,0.01288604]
[1770083533031,1.48236035,2357.8,2357.4,1.06049037]
[1770083534153,1.48236035,2357.8,2357.3,1.07338661]
[1770083534337,1.73661868,2357.8,2357.2,1.06055918]
[1770083534542,1.48236035,2357.7,2357.0,1.06065905]
[1770083534837,1.48236035,2357.7,2357.0,1.06063633]
[1770083535047,1.48236035,2357.5,2356.6,1.07371103]
[1770083535353,1.48236035,2357.5,2356.6,1.06082499]
[1770083535857,1.48236035,2357.5,2356.6,1.07371103]
[1770083536042,1.48236035,2357.5,2357.2,0.001]
[1770083536247,1.48236035,2357.5,2356.3,4.24384069]
[1770083536448,1.48186035,2357.3,2356.4,1.06091476]
[1770083536635,1.48186035,2357.3,2356.0,0.59202913]
[1770083536962,1.48136035,2357.1,2355.9,1.06214443]
[1770083537145,1.48136035,2356.9,2356.0,0.001]
[1770083539260,1.48136035,2356.7,2356.0,0.001]
[1770083540432,1.48136035,2356.7,2356.1,0.01288604]
[1770083540764,1.48136035,2356.7,2356.2,0.01288604]
[1770083541135,1.48136035,2356.7,2356.3,1.06098544]
[1770083541336,1.48136035,2356.7,2356.3,0.53307649]
[1770083541538,1.48136035,2356.7,2356.1,1.06105603]
[1770083541837,1.48136035,2356.7,2356.2,1.07391518]
[1770083542037,1.48136035,2357.0,2356.3,0.01288604]
[1770083543249,1.48136035,2356.9,2356.3,1.07383026]
[1770083543470,1.48136035,2356.9,2356.0,0.001]
[1770083543641,1.48136035,2356.7,2356.0,0.001]
[1770083543842,1.48136035,2356.7,2356.0,1.06207768]
[1770083544372,1.48136035,2356.7,2356.0,0.001]
[1770083545970,1.48136035,2356.5,2356.0,0.001]
[1770083548674,1.48136035,2356.8,2356.2,0.01288604]
[1770083548850,1.48136035,2356.8,2356.3,0.01288604]
[1770083549174,1.48136035,2356.8,2356.4,0.01288604]
[1770083549374,1.48246035,2356.8,2356.4,0.01288604]
[1770083549578,0.0011,2356.8,2356.4,0.01288604]
[1770083550059,0.0011,2356.8,2356.5,0.01288604]
[1770083550654,0.0011,2356.8,2356.6,1.06085037]
[1770083550860,0.0011,2356.8,2356.6,0.53300617]
[1770083550861,1.48246035,2356.8,2356.6,0.53300617]
[1770083551058,1.48246035,2356.8,2356.5,1.06086334]
[1770083552263,1.48246035,2356.8,2356.4,1.060913]
[1770083552450,1.48246035,2356.8,2356.0,0.001]
[1770083552754,1.48086035,2356.6,2356.0,0.001]
[1770083553381,1.48086035,2356.6,2355.6,0.001]
[1770083553561,1.65041764,2356.7,2355.6,0.001]
[1770083553562,1.48036035,2356.4,2355.6,0.001]
[1770083554651,1.48036035,2356.4,2355.3,1.06139969]
[1770083554652,1.48036035,2356.2,2355.2,0.001]
[1770083554852,1.47986035,2356.0,2355.2,1.06248097]
[1770083556377,1.47986035,2356.0,2355.2,0.001]
[1770083557080,1.47986035,2355.8,2355.0,0.001]
[1770083557675,1.42986035,2355.8,2355.0,0.001]
[1770083558463,1.45436035,2355.6,2355.0,0.001]
[1770083559003,1.45436035,2355.4,2355.0,0.001]
[1770083559399,1.45436035,2355.4,2354.7,0.001]
[1770083559601,1.45386035,2355.2,2354.7,0.001]
[1770083560770,1.45386035,2355.2,2354.5,1.14194482]
[1770083561077,1.0616162,2354.9,2354.1,0.001]
[1770083561800,4.49739447,2355.3,2354.6,0.01288604]
[1770083561801,1.31302083,2355.3,2354.6,0.01288604]
[1770083562099,0.25157061,2355.3,2354.6,0.01288604]
[1770083562303,1.06137663,2355.5,2354.7,0.01288604]
[1770083562670,0.0011,2355.6,2354.7,0.01288604]
[1770083563972,0.0011,2355.6,2354.8,1.06166128]
[1770083564796,0.98052244,2355.6,2354.7,1.061674]
[1770083565182,0.98052244,2355.6,2354.7,1.07456004]
[1770083565504,0.0011,2355.6,2354.8,0.54632298]
[1770083565685,0.0011,2355.6,2354.9,0.01288604]
[1770083566096,0.0011,2355.6,2355.0,1.06157112]
[1770083567591,0.0011,2355.6,2355.0,1.07445716]
[1770083567793,0.0011,2355.8,2355.2,0.01288604]
[1770083568112,0.0011,2355.8,2355.0,1.07445716]
[1770083568312,0.0011,2355.8,2355.1,0.53336277]
[1770083570613,0.0011,2355.8,2355.2,1.06148097]
[1770083570932,0.0011,2355.8,2355.3,0.01288604]
[1770083572698,0.0011,2355.8,2355.4,1.06139084]
[1770083573793,0.89,2356.4,2355.5,0.01288604]
[1770083574111,0.89,2356.4,2355.6,0.01288604]
[1770083574311,0.3131278,2356.5,2355.6,0.01288604]
[1770083574897,1.37403001,2356.5,2355.7,1.06125567]
[1770083575112,0.0011,2355.8,2355.7,1.06125567]
[1770083575420,0.0011,2355.8,2355.7,1.64662824]
[1770083575593,0.0011,2355.8,2355.6,4.24502271]
[1770083575594,0.0011,2355.8,2355.2,0.001]
[1770083575788,0.0011,2355.8,2355.5,1.06134462]
[1770083576994,0.0011,2355.8,2355.2,0.01388604]
[1770083577192,0.95807624,2356.3,2355.5,0.01288604]
[1770083577398,1.37404981,2356.5,2355.5,0.01288604]
[1770083577622,0.65756266,2356.4,2355.5,0.01288604]
[1770083578938,0.3131278,2356.5,2355.8,0.01288604]
[1770083579692,0.95807624,2356.6,2355.8,0.01288604]
[1770083580038,0.0011,2356.8,2355.9,0.01288604]
[1770083580394,0.0011,2356.8,2356.5,0.01288604]
[1770083580840,0.0011,2356.8,2356.6,0.01288604]
[1770083581041,0.0011,2356.8,2356.7,1.06080536]
[1770083581812,0.0011,2356.8,2356.5,1.06088198]
[1770083582343,0.0011,2356.8,2356.6,1.06083066]
[1770083583010,0.0011,2356.8,2356.4,1.06094041]
[1770083583242,0.0011,2356.8,2356.5,0.53175881]
[1770083583540,0.0011,2356.8,2356.4,1.06094041]
[1770083583541,0.0011,2356.8,2356.3,1.060961]
[1770083585262,0.0011,2356.8,2356.2,4.24411804]
[1770083585447,0.0011,2356.8,2356.0,1.06108478]
[1770083585448,0.95917624,2356.8,2356.0,1.06108478]
[1770083585899,0.95917624,2356.8,2355.9,1.0611359]
[1770083586190,0.95917624,2356.8,2355.8,1.06118013]
[1770083586348,0.95917624,2356.8,2355.8,1.06120913]
[1770083586556,0.95917624,2356.8,2356.0,1.0610824]
[1770083587061,0.95917624,2356.6,2355.7,1.06121737]
[1770083587254,0.95807624,2356.4,2355.5,1.06234578]
[1770083589366,0.95807624,2356.3,2355.5,1.06234578]
[1770083591980,0.95807624,2356.1,2355.3,1.06242385]
[1770083592483,0.95807624,2356.1,2355.3,1.07530989]
[1770083592696,0.95807624,2356.4,2355.5,0.01288604]
[1770083592898,0.52017054,2356.3,2355.5,0.01288604]
[1770083593067,0.95807624,2356.4,2355.6,0.01288604]
[1770083594207,0.95807624,2356.4,2355.7,1.06125567]
[1770083594208,2.0190214,2356.4,2355.7,1.06125567]
[1770083596293,2.0190214,2356.4,2355.6,4.24508803]
[1770083596497,0.95807624,2356.4,2355.6,4.24508803]
[1770083596678,0.0011,2356.6,2355.8,0.01288604]
[1770083596880,0.91322654,2356.5,2355.8,0.01288604]
[1770083597090,0.91322654,2356.5,2355.6,4.25797407]
[1770083597091,0.95807624,2356.5,2355.6,4.25797407]
[1770083597273,0.91355632,2356.4,2355.6,4.25797407]
[1770083597475,1.81271086,2356.6,2355.5,1.06131332]
[1770083597476,0.95807624,2356.3,2355.5,1.06131332]
[1770083598696,0.95807624,2356.3,2355.4,4.24549815]
[1770083598697,0.95807624,2356.1,2355.4,1.06135694]
[1770083598903,0.95807624,2356.0,2355.7,0.001]
[1770083600023,0.95807624,2356.0,2355.5,0.001]
[1770083600628,0.62632286,2356.1,2355.5,0.001]
[1770083600629,0.62632286,2356.1,2355.5,0.01388604]
[1770083600795,0.0011,2356.2,2355.6,1.06130073]
[1770083602206,0.0011,2356.2,2355.6,1.07418677]
[1770083603801,0.0011,2356.2,2355.7,0.01288604]
[1770083604829,0.0011,2356.4,2356.0,0.01288604]
[1770083607109,0.0011,2356.4,2356.1,1.0610755]
[1770083607616,0.0011,2356.4,2356.0,1.06110614]
[1770083608214,0.0011,2356.4,2356.0,1.06111954]
[1770083609356,0.0011,2356.4,2355.8,4.24481348]
[1770083609357,0.97765203,2356.4,2355.8,4.24481348]
[1770083609504,0.97765203,2356.4,2355.7,1.06123702]
[1770083609902,1.06195423,2356.6,2356.3,0.01288604]
[1770083609903,0.0011,2356.6,2356.3,0.01288604]
[1770083610115,0.0011,2356.6,2356.2,0.01288604]
[1770083610413,0.0011,2356.8,2356.5,0.01288604]
[1770083610728,0.0011,2356.8,2356.6,0.01288604]
[1770083611113,0.0011,2356.8,2356.5,0.01288604]
[1770083611534,0.0011,2356.8,2356.6,1.06085037]
[1770083611910,0.0011,2356.8,2356.4,1.0609184]
[1770083611911,0.97765203,2356.8,2356.4,1.0609184]
[1770083612935,0.97765203,2356.8,2356.5,1.060888]
[1770083613535,0.0011,2356.8,2356.5,0.53046457]
[1770083613705,0.0011,2356.8,2356.3,0.01288604]
[1770083613911,0.0011,2356.8,2356.2,1.06103047]
[1770083614225,0.0011,2356.4,2356.2,1.06103047]
[1770083614426,0.0011,2356.4,2356.2,1.07391651]
[1770083614731,0.0011,2356.8,2356.3,0.01288604]
[1770083615039,0.0011,2356.8,2356.3,0.54728243]
[1770083615340,0.0011,2356.8,2356.4,0.01288604]
[1770083615840,0.0011,2356.8,2356.5,1.06089539]
[1770083618240,0.0011,2356.8,2356.4,4.24358158]
[1770083620054,0.0011,2357.0,2356.5,0.01288604]
[1770083620269,11.75388797,2357.5,2356.7,1.0736914]
[1770083620270,0.32301835,2357.5,2356.7,1.0736914]
[1770083620429,0.91341432,2357.4,2356.7,1.0736914]
[1770083620616,0.32301835,2357.5,2356.7,1.0736914]
[1770083620815,1.29957038,2357.5,2356.7,1.0736914]
[1770083621044,2.36002765,2357.5,2356.8,0.53297989]
[1770083621211,0.97655203,2357.3,2356.8,0.53297989]
[1770083621411,0.97655203,2357.3,2356.7,1.06080536]
[1770083622240,0.32301835,2357.5,2356.7,1.0736914]
[1770083622442,0.97765203,2357.6,2356.7,1.0736914]
[1770083622841,0.0011,2357.6,2357.0,0.01288604]
[1770083623152,0.0011,2357.6,2357.2,0.01288604]
[1770083623454,0.0011,2357.6,2357.1,0.01288604]
[1770083623638,0.0011,2357.6,2357.2,0.01288604]
[1770083624017,0.0011,2357.6,2357.1,0.01288604]
[1770083624438,0.0011,2357.6,2357.2,1.06058034]
[1770083624643,0.0011,2357.6,2357.2,1.59344791]
[1770083625922,0.0011,2357.6,2357.2,1.60633395]
[1770083626232,0.0011,2357.6,2357.2,1.59344791]
[1770083626534,0.0011,2357.4,2357.2,1.59344791]
[1770083628122,0.0011,2357.4,2357.2,1.60633395]
[1770083628358,0.0011,2357.4,2357.3,0.58615433]
[1770083628657,0.0011,2357.4,2357.3,1.64668968]
[1770083629770,0.0011,2357.6,2357.3,1.64668968]
[1770083631044,0.0011,2357.8,2357.4,0.01288604]
[1770083632636,0.0011,2357.8,2357.3,1.65957572]
[1770083632868,0.0011,2357.8,2357.4,0.64476026]
[1770083633383,0.0011,2357.8,2357.5,1.06044538]
[1770083635236,0.0011,2357.8,2357.5,1.07333142]
[1770083636670,0.99206532,2358.6,2357.7,0.01288604]